bitfinex/quotes_SOLUSD_20241118
["timestamp","ask_amount","ask_price","bid_price","bid_amount"]
[1731973701930,4.1768,239.42,239.35,20.10356299]
[1731973702308,170.5387,239.5,239.39,20.10356299]
[1731973702309,23.776884,239.47,239.39,20.10356299]
[1731973702806,23.776884,239.45,239.39,20.10356299]
[1731973703906,23.776884,239.45,239.37,20.10356299]
[1731973704115,20.10356299,239.42,239.36,20.0]
[1731973704326,23.776884,239.41,239.35,20.10356299]
[1731973704525,23.776884,239.41,239.33,20.10356299]
[1731973704710,4.1771,239.4,239.33,20.10356299]
[1731973705034,4.1771,239.4,239.35,20.10356299]
[1731973705328,4.1767,239.42,239.37,20.10356299]
[1731973705634,4.1765,239.44,239.37,20.10356299]
[1731973707638,23.99604862,239.43,239.35,20.10356299]
[1731973708508,23.776884,239.41,239.35,20.10356299]
[1731973708832,23.776884,239.41,239.33,20.10356299]
[1731973709315,23.776884,239.39,239.32,20.0]
[1731973709906,23.776884,239.37,239.3,15.3594]
[1731973710101,20.10356299,239.36,239.27,20.10356299]
[1731973710310,20.10356299,239.34,239.26,10.65405582]
[1731973710511,23.776884,239.39,239.25,20.10356299]
[1731973710512,4.1786,239.31,239.25,4.13525582]
[1731973710731,20.10356299,239.28,239.24,4.13525582]
[1731973710932,20.10356299,239.28,239.19,20.10356299]
[1731973710933,20.10356299,239.28,239.22,4.13525582]
[1731973711236,20.10356299,239.28,239.2,4.13525582]
[1731973711614,20.10356299,239.28,239.19,24.23881881]
[1731973712023,20.10356299,239.26,239.19,24.23881881]
[1731973712535,24.28326299,239.26,239.17,20.10356299]
[1731973712834,24.28326299,239.26,239.19,4.13876632]
[1731973712835,23.776884,239.25,239.19,4.13876632]
[1731973713333,23.776884,239.23,239.18,4.13876632]
[1731973713817,24.28276299,239.28,239.21,20.10356299]
[1731973714135,24.28276299,239.28,239.15,0.4750199]
[1731973714136,4.1788,239.3,239.23,20.10356299]
[1731973714336,20.10356299,239.32,239.25,20.10356299]
[1731973714637,24.28216299,239.32,239.23,20.10356299]
[1731973714947,4.1782,239.34,239.27,20.10356299]
[1731973715107,24.28136299,239.36,239.27,20.10356299]
[1731973715307,4.1775,239.38,239.31,20.10356299]
[1731973715834,20.10356299,239.4,239.31,20.10356299]
[1731973716014,24.28076299,239.4,239.33,20.10356299]
[1731973716324,4.1772,239.4,239.33,20.10356299]
[1731973716528,4.1765,239.43,239.35,20.10356299]
[1731973716919,20.10356299,239.42,239.35,20.10356299]
[1731973717240,20.10356299,239.5,239.4,20.10356299]
[1731973717425,20.10356299,239.5,239.36,15.6804]
[1731973717426,20.10356299,239.51,239.42,20.10356299]
[1731973718147,4.175,239.52,239.44,20.10356299]
[1731973718434,4.175,239.52,239.46,20.10356299]
[1731973718627,20.10356299,239.59,239.5,20.10356299]
[1731973718826,4.1736,239.6,239.52,20.10356299]
[1731973720334,4.1736,239.6,239.54,20.10356299]
[1731973720511,4.1733,239.62,239.54,20.10356299]
[1731973721132,26.76716299,239.69,239.6,20.10356299]
[1731973721335,4.1722,239.68,239.6,20.10356299]
[1731973722537,20.10356299,239.61,239.52,20.10356299]
[1731973722722,20.10356299,239.61,239.52,40.10356299]
[1731973723134,20.10356299,239.57,239.51,16.6576]
[1731973723619,23.776884,239.58,239.51,16.6576]
[1731973724236,4.1739,239.59,239.52,20.10356299]
[1731973725436,4.1734,239.61,239.54,20.10356299]
[1731973725936,4.1734,239.61,239.56,20.10356299]
[1731973726938,20.10356299,239.67,239.58,20.10356299]
[1731973727138,4.1727,239.66,239.6,20.10356299]
[1731973727319,30.81734726,239.73,239.64,20.10356299]
[1731973727524,0.09367462,239.72,239.64,20.10356299]
[1731973727724,24.27486299,239.73,239.64,20.10356299]
[1731973727931,4.1713,239.73,239.69,20.10356299]
[1731973728133,4.1707,239.77,239.71,20.10356299]
[1731973728650,4.1701,239.8,239.71,20.10356299]
[1731973728820,20.10356299,239.79,239.71,20.10356299]
[1731973729844,4.1704,239.78,239.71,20.10356299]
[1731973730230,23.776884,239.77,239.71,20.10356299]
[1731973730636,4.1704,239.78,239.71,20.10356299]
[1731973731163,0.09367462,239.75,239.67,20.10356299]
[1731973731345,20.10356299,239.74,239.67,20.10356299]
[1731973731527,6.54248427,239.83,239.68,41.6951]
[1731973731727,4.1671,239.98,239.85,20.12549]
[1731973731924,4.1671,239.98,239.91,20.10356299]
[1731973732144,30.04750199,240.0,239.93,20.10356299]
[1731973732323,66.72484116,240.0,239.9,32.51053917]
[1731973732740,34.21430199,240.0,239.92,32.51053917]
[1731973733548,23.776884,239.99,239.92,32.51053917]
[1731973733727,30.04750199,240.0,239.95,0.09367462]
[1731973733931,30.04750199,240.0,239.98,32.51053917]
[1731973735151,62.55804116,240.0,239.93,15.5115]
[1731973735346,66.72464116,240.0,239.93,15.5115]
[1731973735545,23.776884,239.99,239.93,15.5115]
[1731973736039,23.776884,239.99,239.9,32.51053917]
[1731973736040,32.51053917,239.96,239.88,32.51053917]
[1731973736247,23.776884,239.97,239.86,32.51053917]
[1731973736248,32.51053917,239.94,239.86,32.51053917]
[1731973736444,23.776884,239.93,239.86,32.51053917]
[1731973736833,32.51053917,239.98,239.84,15.5115]
[1731973737039,32.51053917,239.98,239.85,0.09367462]
[1731973737252,32.51053917,239.98,239.9,32.51053917]
[1731973737450,32.51053917,239.96,239.86,32.51053917]
[1731973737646,32.51053917,239.94,239.86,32.51053917]
[1731973737848,32.51053917,239.94,239.84,48.02203917]
[1731973738246,32.51053917,239.92,239.84,48.02203917]
[1731973739352,32.51053917,239.88,239.8,32.51053917]
[1731973739659,32.51053917,239.84,239.76,21.6951]
[1731973739827,32.51053917,239.82,239.76,21.6951]
[1731973740028,32.51053917,239.84,239.76,21.6951]
[1731973741263,32.51053917,239.69,239.68,15.5115]
[1731973741554,32.51053917,239.69,239.6,21.6951]
[1731973741811,32.51053917,239.67,239.6,21.6951]
[1731973743056,32.51053917,239.67,239.61,20.0]
[1731973743551,32.51053917,239.65,239.6,15.5115]
[1731973743754,32.51053917,239.63,239.6,15.5115]
[1731973744055,32.51053917,239.61,239.6,15.5115]
[1731973744228,32.51053917,239.61,239.52,6.4942]
[1731973744427,32.51053917,239.59,239.52,6.4942]
[1731973745266,32.51053917,239.65,239.54,32.60421379]
[1731973745432,32.51053917,239.76,239.53,20.75098]
[1731973745433,32.51053917,239.67,239.6,0.25098]
[1731973745630,36.68133917,239.76,239.62,20.0]
[1731973745631,32.51053917,239.7,239.62,20.0]
[1731973747537,32.51053917,239.7,239.64,20.0]
[1731973747738,32.51053917,239.68,239.62,0.12549]
[1731973748062,32.51053917,239.76,239.62,0.12549]
[1731973748063,32.51053917,239.7,239.62,0.12549]
[1731973748349,32.51053917,239.74,239.65,32.51053917]
[1731973748557,32.51053917,239.76,239.69,0.12549]
[1731973748738,32.51053917,239.81,239.73,20.0]
[1731973749302,32.51053917,239.79,239.73,20.0]
[1731973749560,32.51053917,239.79,239.71,20.25098]
[1731973749973,32.51053917,239.75,239.71,20.0]
[1731973750263,32.51053917,239.77,239.72,0.12549]
[1731973750463,32.51053917,239.79,239.72,0.12549]
[1731973750835,32.51053917,239.75,239.71,20.0]
[1731973751138,32.51053917,239.73,239.7,15.0907]
[1731973751448,32.51053917,239.71,239.7,15.0907]
[1731973751651,32.51053917,239.73,239.7,15.0907]
[1731973751872,32.51053917,239.75,239.7,15.0907]
[1731973752366,32.51053917,239.75,239.71,20.0]
[1731973752935,0.5,239.98,239.72,0.84465462]
[1731973753140,32.51053917,239.82,239.74,0.12549]
[1731973753373,32.51053917,239.78,239.73,20.0]
[1731973753747,32.51053917,239.78,239.71,20.12549]
[1731973754255,20.04125983,239.77,239.71,20.12549]
[1731973756366,20.04125983,239.79,239.71,20.0]
[1731973757577,20.04125983,239.79,239.72,0.34465462]
[1731973757742,20.04125983,239.81,239.72,0.34465462]
[1731973757942,4.1675,239.95,239.76,0.09367462]
[1731973758183,20.04125983,239.85,239.78,20.0]
[1731973758560,20.04125983,239.85,239.79,0.09367462]
[1731973758759,50.58876182,240.0,239.82,0.09367462]
[1731973758760,20.04125983,239.89,239.82,0.09367462]
[1731973758953,20.04125983,239.91,239.84,0.09367462]
[1731973759160,20.04125983,239.91,239.84,0.34465462]
[1731973759557,20.04125983,239.93,239.84,20.38591445]
[1731973759762,20.04125983,239.95,239.89,0.12549]
[1731973760067,20.04125983,239.97,239.89,0.12549]
[1731973760451,20.04125983,239.97,239.89,0.25098]
[1731973760844,20.04125983,239.99,239.92,0.09367462]
[1731973761057,20.04125983,239.99,239.93,0.12549]
[1731973761847,20.04125983,239.99,239.94,0.83331774]
[1731973762267,20.04125983,239.99,239.93,0.25098]
[1731973762572,20.04125983,239.99,239.94,0.83330062]
[1731973763275,20.04125983,239.99,239.93,0.09367462]
[1731973763451,20.04125983,239.99,239.94,0.12549]
[1731973764478,20.04125983,239.99,239.95,0.21916462]
[1731973764673,20.04125983,239.99,239.96,0.25098]
[1731973765252,30.04750199,240.0,239.96,0.25098]
[1731973765560,0.04750199,240.09,239.96,0.25098]
[1731973765561,2.16982839,240.23,240.11,0.5]
[1731973765760,2.16982839,240.23,240.18,16.528]
[1731973765954,20.04125983,240.27,240.18,16.028]
[1731973766168,20.04125983,240.25,240.18,16.028]
[1731973766487,20.04125983,240.23,240.18,16.028]
[1731973767174,20.04125983,240.27,240.19,0.5]
[1731973767356,20.04125983,240.36,240.26,20.04125983]
[1731973767761,20.04125983,240.34,240.26,20.04125983]
[1731973767979,20.04125983,240.36,240.26,20.04125983]
[1731973768381,2.16784333,240.46,240.25,32.4163281]
[1731973768382,32.4163281,240.33,240.25,32.4163281]
[1731973768696,32.4163281,240.33,240.24,20.0]
[1731973768980,32.4163281,240.31,240.21,32.4163281]
[1731973769292,32.4163281,240.31,240.22,20.0]
[1731973769580,32.4163281,240.31,240.23,32.4163281]
[1731973770472,32.4163281,240.33,240.23,32.4163281]
[1731973771158,32.4163281,240.31,240.22,20.0]
[1731973771363,32.4163281,240.29,240.19,32.4163281]
[1731973771581,32.4163281,240.24,240.19,20.0]
[1731973771828,32.4163281,240.2,240.11,32.4163281]
[1731973772076,32.4163281,240.18,240.09,54.6487281]
[1731973772668,32.4163281,240.24,240.15,32.4163281]
[1731973772868,32.4163281,240.26,240.17,32.4163281]
[1731973773067,32.4163281,240.26,240.18,20.0]
[1731973773269,32.4163281,240.26,240.19,32.4163281]
[1731973773692,32.4163281,240.3,240.21,32.4163281]
[1731973773863,32.4163281,240.32,240.24,20.0]
[1731973774274,32.4163281,240.3,240.24,20.0]
[1731973775287,32.4163281,240.33,240.24,20.0]
[1731973775478,32.4163281,240.25,240.17,32.4163281]
[1731973775681,32.4163281,240.23,240.15,32.4163281]
[1731973776672,32.4163281,240.23,240.13,32.4163281]
[1731973776871,0.62549,240.35,240.18,32.4163281]
[1731973776872,0.25098,240.32,240.18,32.4163281]
[1731973777201,32.4163281,240.28,240.18,32.4163281]
[1731973777375,32.4163281,240.26,240.18,32.4163281]
[1731973777572,32.4163281,240.36,240.18,32.4163281]
[1731973777573,32.4163281,240.28,240.18,32.4163281]
[1731973777901,32.4163281,240.3,240.22,32.4163281]
[1731973778206,32.4163281,240.3,240.23,20.0]
[1731973780284,4.1605,240.35,240.23,20.0]
[1731973780285,32.4163281,240.36,240.26,32.4163281]
[1731973780595,32.4163281,240.4,240.3,32.4163281]
[1731973780804,32.4163281,240.4,240.31,20.0]
[1731973781179,32.4163281,240.4,240.32,32.4163281]
[1731973781902,32.4163281,240.36,240.27,52.4163281]
[1731973783773,32.4163281,240.38,240.29,32.4163281]
[1731973783973,32.4163281,240.38,240.3,20.0]
[1731973785004,32.4163281,240.36,240.3,20.0]
[1731973785200,32.4163281,240.36,240.28,20.0]
[1731973785378,32.4163281,240.38,240.29,32.4163281]
[1731973785578,32.4163281,240.38,240.3,20.0]
[1731973786308,32.4163281,240.4,240.31,32.4163281]
[1731973787381,32.4163281,240.4,240.32,20.0]
[1731973787790,32.4163281,240.37,240.32,20.0]
[1731973787993,32.4163281,240.37,240.27,52.4163281]
[1731973788498,43.8121281,240.48,240.3,20.0]
[1731973788499,32.4163281,240.39,240.3,20.0]
[1731973788691,32.4163281,240.39,240.31,32.4163281]
[1731973789199,32.4163281,240.39,240.32,20.0]
[1731973790295,19.94220962,240.39,240.3,19.94220962]
[1731973790605,19.94220962,240.39,240.31,20.0]
[1731973791283,19.94220962,240.44,240.37,19.94220962]
[1731973791482,30.0,240.38,240.37,19.94220962]
[1731973791707,30.0,240.38,240.35,19.94220962]
[1731973792794,30.0,240.38,240.26,15.4237]
[1731973792795,30.0,240.38,240.3,19.94220962]
[1731973792996,19.94220962,240.35,240.27,19.94220962]
[1731973793288,19.94220962,240.37,240.27,19.94220962]
[1731973793499,19.94220962,240.37,240.29,19.94220962]
[1731973794692,19.94220962,240.37,240.3,20.0]
[1731973795021,19.94220962,240.37,240.27,39.94220962]
[1731973795182,19.94220962,240.37,240.29,19.94220962]
[1731973795381,19.94220962,240.37,240.3,20.0]
[1731973795611,30.0,240.38,240.31,19.94220962]
[1731973795803,30.0,240.38,240.32,20.0]
[1731973796007,19.94220962,240.41,240.32,20.0]
[1731973796182,19.94220962,240.41,240.33,19.94220962]
[1731973796914,19.94220962,240.43,240.36,20.0]
[1731973797293,19.94220962,240.43,240.35,19.94220962]
[1731973797813,19.94220962,240.37,240.27,39.94220962]
[1731973798387,19.94220962,240.37,240.29,19.94220962]
[1731973798610,19.94220962,240.37,240.3,20.0]
[1731973799404,19.94220962,240.35,240.28,20.0]
[1731973800592,19.94220962,240.3,240.19,26.31500962]
[1731973800791,19.94220962,240.28,240.19,26.31500962]
[1731973800992,19.94220962,240.32,240.23,19.94220962]
[1731973801208,19.94220962,240.34,240.25,19.94220962]
[1731973801422,19.94220962,240.32,240.25,19.94220962]
[1731973801718,19.94220962,240.36,240.27,19.94220962]
[1731973801912,19.94220962,240.38,240.29,19.94220962]
[1731973802116,19.94220962,240.38,240.3,20.0]
[1731973802321,19.94220962,240.36,240.3,20.0]
[1731973802698,19.94220962,240.38,240.3,20.0]
[1731973803192,19.94220962,240.36,240.3,20.0]
[1731973803418,19.94220962,240.36,240.28,20.0]
[1731973803803,0.09367462,240.4,240.26,20.0]
[1731973803804,19.94220962,240.34,240.26,20.0]
[1731973804005,19.94220962,240.36,240.28,20.0]
[1731973804211,19.94220962,240.34,240.25,19.94220962]
[1731973804405,19.94220962,240.3,240.21,19.94220962]
[1731973804722,19.94220962,240.28,240.19,26.31500962]
[1731973804924,19.94220962,240.28,240.19,19.94220962]
[1731973805123,19.94220962,240.28,240.18,16.0948]
[1731973805124,19.94220962,240.26,240.18,16.0948]
[1731973806501,19.94220962,240.28,240.21,19.94220962]
[1731973806704,19.94220962,240.28,240.22,20.0]
[1731973809533,24.10410962,240.28,240.19,39.94220962]
[1731973809703,19.94220962,240.24,240.15,19.94220962]
[1731973809905,19.94220962,240.22,240.13,26.46020962]
[1731973810103,19.94220962,240.2,240.12,16.5417]
[1731973810904,19.94220962,240.18,240.12,16.5417]
[1731973811131,19.94220962,240.2,240.12,16.5417]
[1731973811332,19.94220962,240.24,240.15,19.94220962]
[1731973811855,19.94220962,240.22,240.13,39.94220962]
[1731973813102,19.94220962,240.26,240.19,19.94220962]
[1731973813426,19.94220962,240.28,240.2,20.0]
[1731973813917,19.94220962,240.24,240.16,20.0]
[1731973814108,19.94220962,240.21,240.16,20.0]
[1731973814310,19.94220962,240.21,240.13,19.94220962]
[1731973814623,19.94220962,240.17,240.07,19.94220962]
[1731973815005,19.94220962,240.17,240.09,19.94220962]
[1731973815214,24.10600962,240.17,240.09,19.94220962]
[1731973815621,19.94220962,240.15,240.07,19.94220962]
[1731973816028,19.94220962,240.13,240.05,19.94220962]
[1731973816433,19.94220962,240.15,240.07,19.94220962]
[1731973817916,0.25098,240.26,240.13,19.94220962]
[1731973818127,19.94220962,240.21,240.13,19.94220962]
[1731973819516,24.10520962,240.21,240.13,19.94220962]
[1731973820131,19.94220962,240.19,240.11,19.94220962]
[1731973820313,19.94220962,240.19,240.05,23.776884]
[1731973820314,19.94220962,240.19,240.09,19.94220962]
[1731973820728,19.94220962,240.17,240.09,19.94220962]
[1731973822618,24.10590962,240.17,240.09,19.94220962]
[1731973822823,19.94220962,240.1,240.03,19.94220962]
[1731973824361,24.10720962,240.1,240.01,19.94220962]
[1731973825019,19.94220962,240.08,240.01,19.94220962]
[1731973825223,19.94220962,240.08,240.0,15.3171]
[1731973825635,19.94220962,240.08,240.0,20.0]
[1731973826139,19.94220962,240.06,239.97,19.94220962]
[1731973826312,19.94220962,240.04,239.95,35.27840962]
[1731973826520,19.94220962,240.04,239.9,12.2807956]
[1731973826521,19.94220962,240.02,239.93,19.94220962]
[1731973827542,19.94220962,240.02,239.9,6.4279]
[1731973827543,19.94220962,240.02,239.95,19.94220962]
[1731973828213,19.94220962,240.08,239.99,19.94220962]
[1731973828434,19.94220962,240.08,240.01,19.94220962]
[1731973829539,19.94220962,240.06,239.99,19.94220962]
[1731973829728,24.10750962,240.08,239.99,19.94220962]
[1731973829925,24.10750962,240.08,240.0,20.0]
[1731973831610,19.94220962,240.1,240.01,19.94220962]
[1731973831815,19.94220962,240.12,240.04,20.0]
[1731973832037,24.10640962,240.14,240.05,19.94220962]
[1731973832237,24.10640962,240.14,240.06,20.0]
[1731973833038,19.94220962,240.12,240.04,20.0]
[1731973834048,19.94220962,240.1,240.04,20.0]
[1731973834219,19.94220962,240.08,240.0,20.0]
[1731973834750,19.94220962,240.06,239.97,19.94220962]
[1731973834928,19.94220962,240.08,239.99,19.94220962]
[1731973835948,19.94220962,240.06,239.97,19.94220962]
[1731973836151,19.94220962,240.04,239.95,19.94220962]
[1731973837144,19.94220962,240.06,239.97,19.94220962]
[1731973837337,19.94220962,240.08,240.0,39.94220962]
[1731973837538,19.94220962,240.08,240.01,20.0]
[1731973838227,19.94220962,240.08,239.99,20.0]
[1731973838430,19.94220962,240.04,239.96,19.94220962]
[1731973838624,19.94220962,240.06,239.97,20.0]
[1731973838828,19.94220962,240.08,239.98,19.94220962]
[1731973839029,19.94220962,240.08,240.01,20.0]
[1731973839228,19.94220962,240.1,240.01,20.0]
[1731973839428,19.94220962,240.12,240.04,19.94220962]
[1731973839661,19.94220962,240.14,240.04,19.94220962]
[1731973840448,19.94220962,240.12,240.04,19.94220962]
[1731973840639,19.94220962,240.1,240.02,35.58080962]
[1731973840839,19.94220962,240.12,240.02,35.58080962]
[1731973841560,19.94220962,240.12,240.03,20.0]
[1731973841755,19.94220962,240.1,240.03,20.0]
[1731973842055,19.94220962,240.1,240.01,20.0]
[1731973842351,24.10720962,240.1,240.01,20.0]
[1731973842549,0.12549,240.14,240.02,19.94220962]
[1731973842740,19.94220962,240.11,240.02,19.94220962]
[1731973843254,19.94220962,240.09,240.01,20.0]
[1731973843629,19.94220962,240.05,239.96,35.77290962]
[1731973843828,24.10800962,240.05,239.96,35.77290962]
[1731973845352,0.12549,240.14,240.0,19.94220962]
[1731973845554,19.94220962,240.1,240.02,19.94220962]
[1731973846126,19.94220962,240.1,240.0,19.94220962]
[1731973846331,19.94220962,240.08,239.98,19.94220962]
[1731973846531,19.94220962,240.06,239.99,20.0]
[1731973846748,19.94220962,240.08,239.98,19.94220962]
[1731973847132,19.94220962,240.08,239.99,20.0]
[1731973847347,19.94220962,240.06,239.97,20.0]
[1731973847553,19.94220962,240.06,239.97,39.94220962]
[1731973849940,19.94220962,240.06,239.97,20.0]
[1731973850159,10.617,240.18,240.06,20.0]
[1731973850341,10.617,240.18,240.1,19.94220962]
[1731973850842,10.617,240.18,240.08,19.94220962]
[1731973851357,19.94220962,240.17,240.08,19.94220962]
[1731973852058,19.94220962,240.15,240.06,19.94220962]
[1731973852766,19.94220962,240.17,240.08,19.94220962]
[1731973852953,10.617,240.18,240.1,19.94220962]
[1731973855039,19.94220962,240.19,240.1,19.94220962]
[1731973855356,24.10560962,240.19,240.1,19.94220962]
[1731973856040,24.10560962,240.19,240.06,23.902374]
[1731973856242,24.10560962,240.19,240.09,19.94220962]
[1731973858564,24.10560962,240.19,240.1,20.0]
[1731973858750,6.4906,240.23,240.11,19.94220962]
[1731973858751,24.10530962,240.21,240.11,19.94220962]
[1731973859151,24.10530962,240.21,240.12,20.0]
[1731973859353,4.1631,240.21,240.13,19.94220962]
[1731973859557,24.10530962,240.21,240.11,19.94220962]
[1731973859759,30.0,240.14,240.1,20.0]
[1731973860062,30.0,240.14,240.11,19.94220962]
[1731973860368,19.94220962,240.19,240.09,39.94220962]
[1731973860666,19.94220962,240.13,240.03,36.45720962]
[1731973861341,30.0,240.12,240.03,36.45720962]
[1731973861967,19.94220962,240.11,240.03,36.45720962]
[1731973862155,19.94220962,240.11,240.02,20.0]
[1731973862551,19.94220962,240.11,240.01,23.776884]
[1731973863342,19.94220962,240.09,240.01,23.776884]
[1731973863763,19.94220962,240.09,240.02,20.0]
[1731973864957,19.94220962,240.07,239.98,19.94220962]
[1731973865157,19.94220962,240.07,239.92,16.5973]
[1731973865473,19.94220962,240.07,239.97,19.94220962]
[1731973866151,4.1652,240.08,239.99,19.94220962]
[1731973866350,16.66112665,240.08,239.99,12.49592665]
[1731973867569,16.66112665,240.08,239.87,15.0165]
[1731973867570,12.49592665,240.0,239.87,15.0165]
[1731973867747,12.49592665,239.96,239.88,12.49592665]
[1731973868247,12.49592665,239.96,239.87,15.0165]
[1731973868452,12.49592665,239.94,239.87,15.0165]
[1731973868648,19.30036855,240.11,239.94,0.5]
[1731973868873,19.30036855,240.11,240.03,12.49592665]
[1731973868874,12.49592665,240.11,240.03,12.49592665]
[1731973869176,12.49592665,240.11,239.99,15.4429]
[1731973869177,30.0,240.12,240.05,12.49592665]
[1731973869551,42.49592665,240.12,240.04,20.0]
[1731973869767,42.49592665,240.12,240.05,12.49592665]
[1731973870273,12.49592665,240.12,240.05,12.49592665]
[1731973870466,12.49592665,240.12,240.06,23.776884]
[1731973870668,16.66052665,240.12,240.04,23.776884]
[1731973871971,12.49592665,240.08,240.04,23.776884]
[1731973872471,12.49592665,240.1,240.02,43.776884]
[1731973873268,4.25747462,240.16,239.96,12.49592665]
[1731973873269,12.49592665,240.06,239.96,12.49592665]
[1731973873469,12.49592665,240.04,239.96,12.49592665]
[1731973874252,12.49592665,240.08,240.0,12.49592665]
[1731973874648,12.49592665,240.08,239.99,23.776884]
[1731973875155,12.49592665,240.02,239.93,28.96262665]
[1731973875861,12.49592665,240.02,239.95,12.49592665]
[1731973876171,12.49592665,240.02,239.93,16.4667]
[1731973876172,12.49592665,240.02,239.93,28.46262665]
[1731973876378,12.49592665,240.0,239.91,12.49592665]
[1731973877355,6.4346,240.11,239.98,12.49592665]
[1731973877673,6.4346,240.11,239.92,0.59367462]
[1731973877674,4.1651,240.09,240.02,12.49592665]
[1731973877980,4.1651,240.09,239.92,1.4267989]
[1731973877981,4.1651,240.09,240.04,12.49592665]
[1731973878556,4.1651,240.09,240.03,23.776884]
[1731973879470,4.1651,240.09,240.04,12.49592665]
[1731973880177,23.09522665,240.11,240.05,23.776884]
[1731973881062,10.5993,240.11,240.05,23.776884]
[1731973883671,28.81072665,240.18,240.1,12.49592665]
[1731973883875,12.49592665,240.18,240.11,23.776884]
[1731973884781,6.48036914,240.21,240.03,0.5]
[1731973884782,4.163,240.21,240.15,23.776884]
[1731973884965,12.49592665,240.18,240.1,12.49592665]
[1731973885170,4.163,240.21,240.09,15.879]
[1731973885171,12.49592665,240.16,240.09,23.776884]
[1731973885679,16.65992665,240.16,240.09,23.776884]
[1731973885979,16.65992665,240.16,240.1,12.49592665]
[1731973885980,4.164,240.16,240.1,12.49592665]
[1731973886179,16.65952665,240.18,240.11,23.776884]
[1731973887576,12.49592665,240.16,240.11,23.776884]
[1731973887785,12.49592665,240.16,240.09,23.776884]
[1731973888602,16.65952665,240.18,240.09,23.776884]
[1731973888764,16.65952665,240.18,240.1,20.0]
[1731973889092,16.65952665,240.18,240.09,23.776884]
[1731973889386,12.49592665,240.18,240.11,23.776884]
[1731973889989,12.49592665,240.2,240.13,23.776884]
[1731973890487,12.49592665,240.22,240.13,23.776884]
[1731973890966,12.49592665,240.24,240.16,12.49592665]
[1731973891287,12.49592665,240.24,240.17,23.776884]
[1731973891787,16.65852665,240.24,240.17,23.776884]
[1731973893170,12.49592665,240.24,240.17,23.776884]
[1731973893376,12.49592665,240.26,240.19,23.776884]
[1731973895088,12.49592665,240.28,240.21,43.776884]
[1731973895262,10.7348,240.31,240.23,23.776884]
[1731973895263,12.49592665,240.3,240.23,23.776884]
[1731973895869,16.65742665,240.3,240.23,23.776884]
[1731973896075,12.49592665,240.3,240.23,23.776884]
[1731973896496,4.1608,240.34,240.25,23.776884]
[1731973896789,12.49592665,240.3,240.25,23.776884]
[1731973896975,12.49592665,240.3,240.23,23.776884]
[1731973898184,16.65742665,240.3,240.23,23.776884]
[1731973898569,4.1615,240.3,240.23,23.776884]
[1731973899178,16.65742665,240.3,240.23,23.776884]
[1731973900272,16.65742665,240.3,240.21,23.776884]
[1731973900674,16.65742665,240.3,240.23,23.776884]
[1731973901491,16.65712665,240.32,240.24,12.49592665]
[1731973901792,4.1606,240.35,240.27,23.776884]
[1731973901981,4.1606,240.35,240.29,23.776884]
[1731973902376,12.49592665,240.36,240.29,23.776884]
[1731973902677,12.49592665,240.38,240.31,23.776884]
[1731973902881,16.65602665,240.38,240.31,23.776884]
[1731973904793,12.49592665,240.32,240.24,32.62141665]
[1731973905989,12.49592665,240.32,240.25,23.776884]
[1731973906492,16.65672665,240.34,240.25,23.776884]
[1731973907871,12.49592665,240.32,240.25,23.776884]
[1731973908592,16.65702665,240.32,240.25,23.776884]
[1731973909092,12.49592665,240.32,240.25,23.776884]
[1731973909994,12.49592665,240.3,240.24,23.776884]
[1731973911588,12.49592665,240.34,240.24,36.27281065]
[1731973911993,12.49592665,240.34,240.27,23.776884]
[1731973912509,16.65672665,240.34,240.27,23.776884]
[1731973913404,12.49592665,240.32,240.25,23.776884]
[1731973913603,12.49592665,240.32,240.26,20.0]
[1731973914103,12.49592665,240.3,240.25,23.776884]
[1731973914307,12.49592665,240.32,240.24,23.776884]
[1731973914602,12.49592665,240.32,240.24,36.27281065]
[1731973915283,4.16,240.38,240.24,23.776884]
[1731973915284,12.49592665,240.3,240.24,23.776884]
[1731973915492,12.49592665,240.32,240.24,23.776884]
[1731973915687,12.49592665,240.32,240.24,36.27281065]
[1731973915887,16.65712665,240.32,240.23,16.1497]
[1731973916202,12.49592665,240.3,240.23,16.1497]
[1731973916402,12.49592665,240.25,240.18,18.90902665]
[1731973916605,12.49592665,240.25,240.17,15.3352]
[1731973916983,12.49592665,240.23,240.17,15.3352]
[1731973917306,12.49592665,240.25,240.17,15.3352]
[1731973917612,12.49592665,240.25,240.18,20.0]
[1731973917785,4.1625,240.24,240.18,20.0]
[1731973917986,12.49592665,240.23,240.17,15.3352]
[1731973918193,12.49592665,240.23,240.18,23.776884]